[Event "Israeli Team U18-ch 2022"]
[Site "Be'er Ya'akov"]
[Date "2022.08.14"]
[Round "1.6"]
[White "Shocron, Alon"]
[Black "Kochavi, Ori"]
[Result "1-0"]
[ECO "A10"]
[WhiteElo "1895"]
[BlackElo "2364"]
[Annotator "TA"]
[PlyCount "127"]
[EventDate "2022.08.14"]
[EventCountry "ISR"]
[SourceTitle "playchess.com"]
[Source "ChessBase"]
[SourceQuality "1"]
[TimeControl "3000+10"]

{[%evp 9,127,-11,59,48,43,36,47,43,45,44,87,76,81,-79,-86,-86,-14,0,64,70,78,47,35,36,36,43,43,22,30,24,102,47,86,87,89,79,70,83,76,82,86,42,32,43,20,17,136,87,145,157,142,52,38,55,51,9,57,60,65,36,36,22,33,33,75,0,0,0,0,-17,0,0,0,-10,-8,-9,0,0,0,0,0,-184,-135,-143,-137,-133,-58,-79,0,-24,0,0,0,0,0,0,0,0,8,0,0,79,528,421,510,515,803,728,996,0,0,0,472,10,10,10,29988,29989,29989,1446]} 1. c4 {[%emt 0:00:02]} b6 {[%emt 0:00:12]} 2. e4 {[%emt 0:00:57]} Bb7 {[%emt 0:00:12]} 3. Nc3 {[%emt 0:00:06]} e6 {[%emt 0:00:03]} 4. a3 {[%emt 0:01:14]} c5 {[%emt 0:00:27]} 5. Nf3 {[%emt 0:00:13]} a6 {[%emt 0:09:14]} (5... Nf6 $11) 6. d4 $14 {[%emt 0:03:06] A10: English Opening: Unusual Replies for Black.} cxd4 {[%emt 0:00:04]} 7. Qxd4 {[%emt 0:03:51]} Nc6 {[%emt 0:00:13]} 8. Qd3 {[%emt 0:00:03] White is slightly better.} Qc7 {[%emt 0:04:14] [#] Against Bf4} 9. Be2 $146 {[%emt 0:03:42]} ({Predecessor:} 9. g3 Be7 10. Bf4 d6 11. Rc1 Nf6 12. Bg2 O-O 13. O-O Rad8 14. Nd5 exd5 15. cxd5 {1-0 (15) Skvortsov,V (2107)-Klykov,V (1794) Nizhnij Novgorod 2011}) 9... Nge7 {[%emt 0:00:58]} 10. O-O {[%emt 0:00:36]} Ng6 {[%emt 0:01:00]} 11. Nd2 $2 {[%emt 0:04:33]} (11. Rd1 $16 {and life is bright.}) 11... Nf4 $17 {[%emt 0:03:56]} 12. Qc2 {[%emt 0:00:33]} h5 {[%emt 0:03:08]} (12... Nd4 $17 13. Qd1 h5) 13. Nf3 $11 {[%emt 0:07:27]} Ng6 {[%emt 0:05:37]} (13... Nxe2+ $11 14. Nxe2 Ne5) 14. Be3 $14 {[%emt 0:03:16]} Bc5 {[%emt 0:01:31]} 15. Bxc5 {[%emt 0:02:12]} bxc5 {[%emt 0:00:04]} 16. Rad1 {[%emt 0:00:27]} d6 {[%emt 0:01:35]} 17. Qd2 {[%emt 0:01:08]} Rd8 {[%emt 0:00:32]} 18. Ng5 {[%emt 0:00:58]} e5 {[%emt 0:03:17]} 19. Nd5 {[%emt 0:01:46]} Qb8 {[%emt 0:00:56]} (19... Qd7 $11) 20. b4 {[%emt 0:00:58] White is much more active. The black rooks are badly placed.} (20. f4 $1 $16) 20... cxb4 {[%emt 0:02:42]} 21. axb4 {[%emt 0:00:06]} Nd4 {[%emt 0:01:19]} 22. f4 {[%emt 0:01:27]} f6 {[%emt 0:03:29]} 23. f5 {[%emt 0:01:04]} Nf8 {[%emt 0:06:31]} 24. Nf3 $1 {[%emt 0:00:19][%cal Bg5f3,Bf3d4,Bd4c6][%mdl 32]} Bxd5 {[%emt 0:00:18]} 25. exd5 {[%emt 0:00:17]} Nxe2+ {[%emt 0:02:01]} 26. Qxe2 {[%emt 0:00:03]} Qxb4 {[%emt 0:00:01]} 27. Nd4 {[%emt 0:00:16]} Qc5 {[%emt 0:00:07]} (27... Rc8 $11 {remains equal.}) 28. Kh1 $1 $16 {[%emt 0:00:04]} Rc8 {[%emt 0:00:12]} ({Black should play} 28... Rb8) 29. Nc6 {[%emt 0:00:06]} Nd7 {[%emt 0:00:23]} 30. Ra1 {[%emt 0:00:49]} (30. Rb1 $1 $16) 30... Rxc6 $14 {[%emt 0:00:36]} 31. dxc6 {[%emt 0:00:05]} Qxc6 {[%emt 0:00:28]} 32. Rf3 {[%emt 0:01:27]} h4 {[%emt 0:00:00]} (32... Nc5 $11 {was preferrable.}) 33. Rb3 {[%emt 0:01:13]} h3 {[%emt 0:00:00]} 34. Rg3 {[%emt 0:01:10]} (34. c5 $5) 34... Rh7 {[%emt 0:00:18]} 35. Qg4 {[%emt 0:00:17]} hxg2+ {[%emt 0:00:02]} 36. Rxg2 {[%emt 0:00:09]} Kd8 {[%emt 0:00:19]} 37. Qg6 {[%emt 0:00:23]} (37. Qd1 $1 $16) 37... Rh4 $11 {[%emt 0:00:01]} 38. Qxg7 {[%emt 0:00:27]} Rxc4 {[%emt 0:00:01]} 39. Qh6 {[%emt 0:00:52]} Rc2 {[%emt 0:00:11][%csl Gc2][%cal Rc6g2]} 40. Qh8+ {[%emt 0:00:45]} Kc7 {[%emt 0:00:01][%csl Gc2][%cal Rc6g2]} 41. Qg7 {[%emt 0:00:09]} a5 {[%emt 0:00:26]} 42. h4 $1 {[%emt 0:00:26]} Rc4 {[%emt 0:00:11]} 43. Qg3 {[%emt 0:00:13]} Rc3 {[%emt 0:00:01]} 44. Qg4 {[%emt 0:00:21]} Rc4 {[%emt 0:00:04]} 45. Qh5 {[%emt 0:00:30]} (45. Qg3 $11) 45... a4 {[%emt 0:00:09]} (45... Rc2 46. Qg4 $15) (45... Rf4 $19 46. Qe2 Rxh4+ 47. Kg1 a4) 46. Kh2 $17 {[%emt 0:00:13]} Qe4 {[%emt 0:00:01]} 47. Kh3 {[%emt 0:00:40]} Rc3+ {[%emt 0:00:22]} (47... Nc5 $17 {aiming for ...Nd3.} 48. Rf1 Nd3) 48. Rg3 $15 {[%emt 0:00:06]} Qd4 {[%emt 0:00:31]} (48... Rxg3+ $17 49. Kxg3 Qf4+ 50. Kg2 Qe4+ 51. Kh3 Qd3+ 52. Kh2 Qd2+ 53. Kh1 Qd5+ 54. Kh2 Qd2+ 55. Kh1 Qd5+ 56. Kh2 Qd2+) 49. Rag1 $11 {[%emt 0:00:14]} Rc4 {[%emt 0:00:09]} 50. Qg4 {[%emt 0:00:23] Hoping for Qxd4.} Qc5 {[%emt 0:00:07]} 51. Qd1 {[%emt 0:00:31]} Qb4 {[%emt 0:00:13]} 52. Rg4 {[%emt 0:00:19]} e4 {[%emt 0:00:02]} 53. h5 {[%emt 0:00:36] And now h6 would win.} Ne5 $132 {[%emt 0:00:00][%mdl 2048] Black is fighting back} 54. Rg7+ {[%emt 0:00:21]} Kc6 {[%emt 0:00:01]} 55. h6 {[%emt 0:00:20] Strongly threatening h7.} (55. R1g3 $2 Nd3 56. Kh2 (56. Rxd3 $2 exd3 57. Qf3+ d5 $19) 56... Qc5 $19) 55... e3 $2 {[%emt 0:00:01][%mdl 8192] [#]} (55... Qc5 $16 {is more resistant.}) 56. Qh5 $1 $18 {[%emt 0:00:15]} e2 {[%emt 0:00:25]} 57. Qxe2 {[%emt 0:01:46] Black must now prevent h7.} ({Don't go for} 57. h7 $2 Rc3+ 58. R7g3 (58. Kg2 $2 Qe4+ 59. Kh2 e1=Q $19) 58... Rxg3+ 59. Kxg3 e1=Q+ $19) 57... Rh4+ {[%emt 0:00:12]} (57... Qc3+ $142 58. R7g3 Qd4) 58. Kg2 {[%emt 0:00:05]} Rd4 {[%emt 0:00:28]} 59. Qc2+ $2 {[%emt 0:02:14]} (59. Qa6+ $18 Kd5 60. Qa8+ Kc4 61. Rf1) 59... Rc4 $11 {[%emt 0:00:04]} 60. Qe2 {[%emt 0:00:22]} Qc5 $2 {[%emt 0:00:11][%mdl 8192] [#]} (60... Rd4 $1 $11 {and Black has nothing to worry.} 61. Rc1+ Kb6) 61. Rd1 $2 {[%emt 0:00:18]} ({White must play} 61. Kh3 $1 $18 {h7 is the strong threat.} Qd4 62. Qh5) 61... Rc2 {[%emt 0:00:16]} 62. Rd2 {[%emt 0:00:01] Dancing on a razor blade.} Rc4 $2 {[%emt 0:00:11][%mdl 8192]} (62... Qd5+ $11 63. Rxd5 Rxe2+ 64. Kf1 Rh2) 63. h7 {[%emt 0:00:09]} Rh4 {[%emt 0:00:10]} 64. Qa6+ {[%emt 0:00:02] Both players deserved the win here.  Weighted Error Value: White=0.40/Black=0.50} 1-0

[Event "Israeli Team U18-ch 2022"]
[Site "Be'er Ya'akov"]
[Date "2022.08.14"]
[Round "1.7"]
[White "Uritsky, Yonathan"]
[Black "Kabakov, Iddo"]
[Result "1-0"]
[ECO "B12"]
[WhiteElo "2130"]
[BlackElo "1592"]
[Annotator "TA"]
[PlyCount "89"]
[EventDate "2022.08.14"]
[EventCountry "ISR"]
[SourceTitle "playchess.com"]
[Source "ChessBase"]
[SourceQuality "1"]
[TimeControl "3000+10"]

{[%evp 9,89,6,6,10,52,36,81,54,323,322,332,335,314,245,318,310,317,321,325,306,378,340,352,344,377,372,444,439,435,431,447,420,490,483,564,559,612,455,476,408,427,379,364,355,430,424,389,391,493,379,522,513,481,382,379,378,379,378,347,280,533,522,685,683,657,636,808,792,785,764,29980,29981,29980,29982,29982,29982,29982,29983,29983,29984,29984,29985]} 1. e4 {[%emt 0:00:02]} c6 {[%emt 0:00:08]} 2. Ne2 {[%emt 0:00:01]} d5 {[%emt 0:00:09]} 3. e5 {[%emt 0:00:06]} c5 {[%emt 0:01:32]} 4. d4 {[%emt 0:00:01]} cxd4 {[%emt 0:00:23]} 5. Nxd4 {[%emt 0:00:02]} Nc6 {[%emt 0:00:26]} 6. c4 {[%emt 0:00:08] B12: Caro-Kann: Advance Variation.} Nxe5 {[%emt 0:05:37]} 7. cxd5 $1 {[%emt 0:00:05]} Nf6 {[%emt 0:00:48]} 8. Nc3 {[%emt 0:02:03] [#] White is better.} Nxd5 $146 {[%emt 0:02:38][%mdl 8192] [#]} (8... a6 $1 $14) ({Predecessor:} 8... a6 9. Bf4 Ng6 10. Bg3 Nxd5 11. Nxd5 Qxd5 12. Be2 e5 13. Nc2 Qxd1+ 14. Rxd1 f5 {0-1 (77) Landa,K (2554)-Kamsky,G (2692) Playchess.com INT 2006}) 9. Bb5+ $18 {[%emt 0:00:36]} Bd7 {[%emt 0:07:39]} 10. Nxd5 {[%emt 0:00:03]} e6 {[%emt 0:04:38]} 11. Nc3 {[%emt 0:01:55]} Bb4 {[%emt 0:02:55]} 12. O-O {[%emt 0:00:21]} O-O {[%emt 0:00:46]} 13. Qe2 {[%emt 0:02:10]} Bxc3 {[%emt 0:05:18]} 14. bxc3 {[%emt 0:00:11]} Qf6 {[%emt 0:02:39]} 15. Re1 {[%emt 0:00:51]} Nc6 {[%emt 0:01:28]} 16. Be3 {[%emt 0:01:07]} Rac8 {[%emt 0:02:22]} 17. Rad1 {[%emt 0:00:29]} Rfd8 {[%emt 0:02:07]} 18. Nxc6 {[%emt 0:00:52]} Bxc6 {[%emt 0:00:37]} 19. Bxc6 {[%emt 0:00:08]} bxc6 {[%emt 0:01:19]} 20. Bd4 {[%emt 0:00:23]} Qg6 {[%emt 0:00:36]} 21. h3 {[%emt 0:00:22]} h6 {[%emt 0:01:36]} 22. Bxa7 {[%emt 0:00:56]} Rd5 {[%emt 0:00:34]} 23. c4 {[%emt 0:01:27]} Rg5 {[%emt 0:00:40]} 24. f4 {[%emt 0:00:25]} Rg3 {[%emt 0:00:49]} 25. Qe4 {[%emt 0:00:12]} Qxe4 {[%emt 0:00:43]} 26. Rxe4 {[%emt 0:00:02]} Ra8 {[%emt 0:00:11]} 27. Bf2 {[%emt 0:00:32]} Rc3 {[%emt 0:00:13]} 28. Rd2 {[%emt 0:01:48]} Ra4 {[%emt 0:00:15]} 29. g3 {[%emt 0:01:25]} Raxc4 {[%emt 0:01:01]} 30. Rxc4 {[%emt 0:00:17]} Rxc4 {[%emt 0:00:08][%mdl 4096] Endgame KRB-KR} 31. Rd7 {[%emt 0:00:43]} c5 {[%emt 0:00:08]} 32. Ra7 {[%emt 0:01:42] Against Ra4} Rc1+ {[%emt 0:00:13]} 33. Kg2 {[%emt 0:00:02]} c4 {[%emt 0:00:08]} 34. Kf3 {[%emt 0:03:05] aiming for Be3.} f5 $2 {[%emt 0:00:30] [#]} (34... c3 35. Rc7 Ra1 36. Rxc3 Rxa2 37. Rc8+ Kh7) 35. Bd4 {[%emt 0:00:46]} c3 {[%emt 0:00:24]} 36. Rxg7+ {[%emt 0:00:49]} Kf8 {[%emt 0:00:02]} 37. Rc7 {[%emt 0:00:33]} c2 {[%emt 0:00:21]} 38. Be3 {[%emt 0:00:17]} Rf1+ {[%emt 0:00:29]} 39. Ke2 {[%emt 0:00:02]} c1=Q {[%emt 0:01:12]} 40. Rxc1 {[%emt 0:00:07] White mates.} Rxc1 {[%emt 0:00:08]} 41. Bxc1 {[%emt 0:00:05]} Ke7 {[%emt 0:00:08]} 42. Ke3 {[%emt 0:00:16]} Kd6 {[%emt 0:00:29]} 43. Kd4 {[%emt 0:00:01]} h5 {[%emt 0:00:25]} 44. Ba3+ {[%emt 0:00:05]} Kc6 {[%emt 0:00:05]} 45. Ke5 {[%emt 0:00:03] Black got outplayed after the opening.  Weighted Error Value: White=0.24 (precise) /Black=0.74} 1-0

[Event "Israeli Team U18-ch 2022"]
[Site "Be'er Ya'akov"]
[Date "2022.08.14"]
[Round "1.8"]
[White "Sade, Elad"]
[Black "Duchan, Yoav"]
[Result "0-1"]
[ECO "B45"]
[WhiteElo "1359"]
[BlackElo "1786"]
[Annotator "NA RC"]
[PlyCount "130"]
[EventDate "2022.08.14"]
[EventCountry "ISR"]
[SourceTitle "playchess.com"]
[Source "ChessBase"]
[SourceQuality "1"]
[TimeControl "3000+10"]

1. e4 {[%emt 0:00:01]} c5 {[%emt 0:00:07]} 2. Nf3 {[%emt 0:00:06]} Nc6 {[%emt 0:00:01]} 3. d4 {[%emt 0:00:14]} cxd4 {[%emt 0:00:02]} 4. Nxd4 {[%emt 0:00:23]} Nf6 {[%emt 0:00:06]} 5. Nc3 {[%emt 0:00:11]} e6 {[%emt 0:00:13]} 6. Bb5 {[%emt 0:01:34]} Bb4 {[%emt 0:01:09]} 7. Bg5 {[%emt 0:02:18]} Qa5 {[%emt 0:01:53]} 8. Bxf6 {[%emt 0:12:23]} Bxc3+ {[%emt 0:00:35]} 9. bxc3 {[%emt 0:00:34]} Qxc3+ {[%emt 0:00:27]} 10. Kf1 {[%emt 0:01:04]} gxf6 {[%emt 0:00:15]} 11. Nb3 {[%emt 0:01:45]} Qe5 {[%emt 0:02:15]} 12. Bd3 {[%emt 0:01:28]} b6 {[%emt 0:01:19]} 13. g3 {[%emt 0:01:07]} Bb7 {[%emt 0:00:23]} 14. f4 {[%emt 0:01:43]} Qc7 {[%emt 0:01:09]} 15. Qg4 {[%emt 0:01:00]} O-O-O {[%emt 0:05:49]} 16. Kf2 {[%emt 0:00:47]} Rdg8 {[%emt 0:05:12]} 17. Qe2 {[%emt 0:01:45]} Ne7 {[%emt 0:02:22]} 18. Ba6 {[%emt 0:01:14]} f5 {[%emt 0:01:49]} 19. e5 {[%emt 0:01:48]} Nd5 {[%emt 0:01:46]} 20. Bxb7+ {[%emt 0:01:39]} Qxb7 {[%emt 0:00:26]} 21. Nd4 {[%emt 0:01:18]} Kb8 {[%emt 0:06:20]} 22. Nb5 {[%emt 0:01:28]} Nxf4 {[%emt 0:01:45]} 23. Qf3 {[%emt 0:06:17]} Nh3+ {[%emt 0:00:54]} 24. Kg2 {[%emt 0:01:20]} Qxf3+ {[%emt 0:00:15]} 25. Kxf3 {[%emt 0:00:17]} Ng5+ {[%emt 0:00:06]} 26. Ke3 {[%emt 0:01:00]} Ne4 {[%emt 0:00:12]} 27. Rad1 {[%emt 0:00:54]} a6 {[%emt 0:01:19]} 28. Nd6 {[%emt 0:00:40]} Nxd6 {[%emt 0:00:42]} 29. Rxd6 {[%emt 0:00:25]} Kc7 {[%emt 0:03:16]} 30. Rhd1 {[%emt 0:00:45]} Rd8 {[%emt 0:00:13]} 31. Rb1 {[%emt 0:00:34]} b5 {[%emt 0:00:34]} 32. Rxa6 {[%emt 0:00:21]} Ra8 {[%emt 0:00:10]} 33. Rxa8 {[%emt 0:00:49]} Rxa8 {[%emt 0:00:03]} 34. Rxb5 {[%emt 0:00:26]} Rxa2 {[%emt 0:00:47]} 35. Rc5+ {[%emt 0:00:11]} Kd8 {[%emt 0:00:44]} 36. Kf4 {[%emt 0:00:24]} h6 {[%emt 0:00:49]} 37. Ke3 {[%emt 0:01:18]} Ra4 {[%emt 0:00:39]} 38. c4 {[%emt 0:01:13]} Ke7 {[%emt 0:00:31]} 39. Rc7 {[%emt 0:00:45]} Ra5 {[%emt 0:00:28]} 40. Kf4 {[%emt 0:00:41]} Kd8 {[%emt 0:00:36]} 41. Rb7 {[%emt 0:00:15]} Ra4 {[%emt 0:00:13]} 42. Rb8+ {[%emt 0:00:27]} Ke7 {[%emt 0:00:18]} 43. Rc8 {[%emt 0:00:13]} f6 {[%emt 0:00:41]} 44. h4 {[%emt 0:01:13]} fxe5+ {[%emt 0:00:39]} 45. Kxe5 {[%emt 0:00:03]} d6+ {[%emt 0:00:23]} 46. Kd4 {[%emt 0:00:13]} d5 {[%emt 0:00:34]} 47. Rh8 {[%emt 0:00:16]} Rxc4+ {[%emt 0:00:24]} 48. Ke3 {[%emt 0:00:23]} Re4+ {[%emt 0:00:53]} 49. Kf3 {[%emt 0:00:25]} d4 {[%emt 0:01:02]} 50. Rxh6 {[%emt 0:00:08]} d3 {[%emt 0:01:44]} 51. Rh7+ {[%emt 0:00:09]} Kd6 {[%emt 0:00:53]} 52. Rh8 {[%emt 0:00:03]} Ke5 {[%emt 0:00:07]} 53. Rd8 {[%emt 0:00:19]} Rd4 {[%emt 0:00:22]} 54. Rxd4 {[%emt 0:00:05]} Kxd4 {[%emt 0:00:01]} 55. h5 {[%emt 0:00:10]} Kc3 {[%emt 0:00:12]} 56. h6 {[%emt 0:00:18]} d2 {[%emt 0:00:03]} 57. h7 {[%emt 0:00:19]} d1=Q+ {[%emt 0:00:03]} 58. Kf4 {[%emt 0:00:03]} Qh1 {[%emt 0:00:08]} 59. h8=Q+ {[%emt 0:00:07]} Qxh8 {[%emt 0:00:01]} 60. g4 {[%emt 0:00:03]} Qd4+ {[%emt 0:00:03]} 61. Kg5 {[%emt 0:00:02]} Qxg4+ {[%emt 0:00:02]} 62. Kf6 {[%emt 0:00:01]} f4 {[%emt 0:00:03]} 63. Ke7 {[%emt 0:00:04]} f3 {[%emt 0:00:01]} 64. Ke8 {[%emt 0:00:03]} Qg7 {[%emt 0:00:04]} 65. Kd8 {[%emt 0:00:03]} Kc4 {[%emt 0:00:02]} 0-1

[Event "Israeli Team U18-ch 2022"]
[Site "Be'er Ya'akov"]
[Date "2022.08.14"]
[Round "1.9"]
[White "Meirovich, Ilay"]
[Black "Vagman, Roy"]
[Result "0-1"]
[ECO "E73"]
[WhiteElo "1752"]
[BlackElo "2180"]
[Annotator "TA"]
[PlyCount "102"]
[EventDate "2022.08.14"]
[EventCountry "ISR"]
[SourceTitle "playchess.com"]
[Source "ChessBase"]
[SourceQuality "1"]
[TimeControl "3000+10"]

{[%evp 13,102,43,40,31,62,24,48,0,-2,-44,-48,-29,22,-15,0,-27,-24,-26,14,-21,-30,-19,0,0,0,0,0,-66,-44,-81,-63,-122,-113,-164,-94,-112,-99,-146,-138,-208,-197,-224,-223,-317,-317,-317,-316,-292,-283,-297,-293,-283,-231,-231,-145,-370,-370,-298,-330,-358,-348,-346,-345,-493,-475,-701,-687,-666,-592,-876,-878,-977,-934,-978,-973,-958,-953,-991,-948,-1027,-982,-1288,-1258,-5439,-5327,-1914,-1569,-5077,-4718,-1803,-1317]} 1. d4 {[%emt 0:00:03]} Nf6 {[%emt 0:00:06]} 2. c4 {[%emt 0:00:10]} c5 {[%emt 0:00:05]} 3. d5 {[%emt 0:00:03]} g6 {[%emt 0:00:09]} 4. Nc3 {[%emt 0:00:06]} Bg7 {[%emt 0:00:07]} 5. e4 {[%emt 0:00:03]} d6 {[%emt 0:00:08]} 6. Be2 {[%emt 0:01:12]} O-O {[%emt 0:01:52]} 7. Be3 {[%emt 0:00:10]} e6 {[%emt 0:01:23]} 8. Nf3 {[%emt 0:00:35] E73: King's Indian: Averbakh Variation without 6...c5.} exd5 {[%emt 0:00:52]} 9. exd5 {[%emt 0:02:07] [#]} Qb6 $146 {[%emt 0:04:06]} ({Predecessor:} 9... Bg4 10. O-O a6 11. h3 Bxf3 12. Bxf3 Nfd7 13. Be2 f5 14. f4 Nf6 15. Bf3 Nbd7 {½-½ (33) Lalith,B (2558)-Ponkratov,P (2641) New Delhi 2022}) 10. Qc2 {[%emt 0:01:13]} (10. Qd2 $14) 10... Bf5 $11 {[%emt 0:00:41]} 11. Bd3 Bxd3 {[%emt 0:00:58]} 12. Qxd3 {[%emt 0:01:14]} Qxb2 {[%emt 0:04:31]} (12... Ng4 $142 $1 13. O-O Nd7) 13. O-O {[%emt 0:01:20]} Ng4 {[%emt 0:02:29]} 14. Bd2 {[%emt 0:01:11]} (14. Ne4 $5 {[%cal Ra1b1]}) 14... Nd7 {[%emt 0:01:48] ...Nge5 is the strong threat.} 15. Rab1 {[%emt 0:01:36][%mdl 64] [#] Deflection} Qa3 {[%emt 0:00:12]} 16. Rb3 {[%emt 0:01:38]} (16. Rxb7 Nb6 17. Re7 Qb4 $15) (16. h3 $5 {[%cal Rh3g4]} Nge5 17. Nxe5 Bxe5 18. Rb3 $11 (18. Rxb7 Nb6 $17)) 16... Qa6 $36 {[%emt 0:00:58][%mdl 2048] Black is more active.} 17. Nb5 $1 {[%emt 0:02:03] Black must now prevent Ra3.} Nge5 {[%emt 0:02:04]} 18. Nxe5 {[%emt 0:00:34]} Nxe5 {[%emt 0:00:01]} 19. Qc2 {[%emt 0:00:32]} Qb6 {[%emt 0:01:50]} 20. Rfb1 {[%emt 0:06:06]} (20. f4 $11 Ng4 21. h3) 20... Qd8 {[%emt 0:00:58]} (20... Rfe8 $5 {[%cal Rb6d8]}) 21. a4 {[%emt 0:02:02]} b6 {[%emt 0:01:20]} 22. f4 {[%emt 0:01:17]} (22. h3 $15) 22... Ng4 $17 {[%emt 0:00:49]} 23. h3 {[%emt 0:00:05]} (23. Bc3 $17 {is a better defense.}) 23... Nf6 {[%emt 0:03:15]} ({Better is} 23... a6 $19 24. hxg4 axb5 25. axb5 Qh4) 24. f5 {[%emt 0:01:01]} Re8 {[%emt 0:01:04]} 25. Bf4 {[%emt 0:02:23]} (25. Rf1 $142) 25... Ne4 {[%emt 0:00:58]} 26. fxg6 {[%emt 0:00:10]} (26. Re1 $17 gxf5 27. Qc1) 26... hxg6 $19 {[%emt 0:00:28]} ({Worse is} 26... fxg6 27. Re3 Nf6 28. Re2 $11) 27. Re1 {[%emt 0:02:07]} f5 {[%emt 0:00:23]} 28. Rbe3 {[%emt 0:00:20]} (28. Reb1 $142) 28... a6 {[%emt 0:06:30]} 29. Rxe4 {[%emt 0:00:11]} Rxe4 {[%emt 0:01:27]} ({And not} 29... fxe4 30. Nxd6 Qh4 31. Rxe4 Rxe4 32. Qxe4 $15) 30. Rxe4 {[%emt 0:00:20]} fxe4 {[%emt 0:01:29]} 31. Nxd6 {[%emt 0:00:18]} Qf6 {[%emt 0:02:42]} 32. Qxe4 {[%emt 0:01:21]} Kh7 {[%emt 0:00:43] Threatens to win with ...Rf8.} 33. Bg3 {[%emt 0:01:53]} Rf8 {[%emt 0:03:03] And now ...Qa1+ would win.} 34. Qh4+ $2 {[%emt 0:01:13] White does not recover from this.} (34. Qe1 $17) 34... Qxh4 {[%emt 0:00:04]} 35. Bxh4 {[%emt 0:00:07][%mdl 4096] Endgame KRB-KBN} Be5 {[%emt 0:02:05]} 36. Ne4 {[%emt 0:01:26]} Rf4 $1 {[%emt 0:01:14][%csl LRe4,LRh4]} 37. Ng5+ {[%emt 0:00:04] [#]} Kg8 $1 {[%emt 0:01:11]} ({Not} 37... Kh6 38. Nf3 Bf6 39. Bxf6 Rxf6 40. Kf2 $17) 38. Nf3 {[%emt 0:00:11]} (38. Bg3 {is the only way for White.} Bd4+ 39. Kh2) 38... Rxc4 {[%emt 0:01:24] Black is clearly winning.} 39. Be7 {[%emt 0:02:32]} (39. Nxe5 $142 Rxh4 40. g4 Rxh3 41. d6) 39... Bg3 {[%emt 0:00:20]} 40. Kf1 {[%emt 0:00:24]} Kf7 {[%emt 0:00:01]} 41. d6 {[%emt 0:01:16]} Ke6 {[%emt 0:00:18]} 42. Ng5+ {[%emt 0:02:05]} Kd7 {[%emt 0:00:01]} 43. Ke2 {[%emt 0:01:04]} Bxd6 {[%emt 0:00:07]} 44. Bf6 {[%emt 0:00:12]} Rxa4 {[%emt 0:00:03]} 45. g4 {[%emt 0:00:20]} Ra2+ {[%emt 0:00:01]} 46. Kf3 {[%emt 0:00:12]} b5 {[%emt 0:00:01][%cal Bb6b5,Bb5b4,Bb4b3,Bb3b2][%mdl 32]} 47. h4 {[%emt 0:00:43]} b4 {[%emt 0:00:01]} 48. h5 {[%emt 0:00:21]} gxh5 {[%emt 0:00:01]} 49. gxh5 {[%emt 0:00:04]} Rh2 {[%emt 0:00:09] Hoping for ...b3.} 50. Kg4 {[%emt 0:00:06]} b3 {[%emt 0:00:03] ( -> ...Rg2+)} 51. Ne4 {[%emt 0:00:39]} b2 {[%emt 0:00:09] Weighted Error Value: White=0.79/Black=0.21 (precise)} 0-1